Cogmind - Beta 10.2 @@@ ROGUE MODE // 2021.09.24 @ 19:59:43 Player: CrossedViper Result: Destroyed by S-43 Plague with Heavy Machine Gun Performance ------------- Evolutions (9) 4500 Regions Visited (25) 5000 Robots Destroyed (320) 1600 Value Destroyed (14333) 14333 Prototype IDs (44) 880 Alien Tech Used (4) 800 Bonus (2652) 2652 TOTAL SCORE: 29765 Bonus ------- High Alert Combat Kills 1565 Follower Combat Kills 256 Met Zhirov 300 Met Warlord at Base 500 MAIN.C Attacked Warlord 500 Scanned by Researcher 500 Acquired SGEMP 2000 Delivered SGEMP 2000 Friendly Fire -4969 Cogmind --------- Core Integrity 0/1600 Matter 279/300 Energy 100/100 System Corruption 13% Temperature Cool (0) Movement Core (50) Location -1/Command Parts ------- > --- POWER (3) -------- (None) > --- PROPULSION (6) --- (None) > --- UTILITY (11) ----- (None) > --- WEAPON (6) ------- (None) > --- INVENTORY (4) ---- (None) Peak State ------------ > --- POWER ------------ Compact Particle Reactor Compact Particle Reactor Light Quantum Reactor > --- PROPULSION ------- Armored Heavy Treads Armored Heavy Treads Armored Huge Wheel > --- UTILITY ---------- Advanced Power Amplifier Advanced Heat Sink Experimental Cooling System Advanced Coolant Injector Medium Storage Unit Medium Storage Unit Spectral Analyzer Improved Armor Integrity Analyzer Advanced Particle Charger Experimental Focal Shield Experimental Shock Absorption System > --- WEAPON ----------- BFG-9k Vortex Edition > --- INVENTORY -------- Gamma Rifle Gamma Rifle Nova Cannon Nova Cannon Enhanced Nova Cannon Enhanced Nova Cannon Enhanced Nova Cannon Multirail Nanosword [Rating: 222] Favorites ----------- Power Heavy Deuterium Engine Engine Heavy Deuterium Engine Power Core Micro Fission Core Reactor Heavy Antimatter Reactor Propulsion Light Treads Treads Light Treads Leg Myomer Leg Wheel Armored Huge Wheel Hover Unit Makeshift Hover Unit Utility Large Storage Unit Device Advanced Heat Sink Storage Large Storage Unit Processor Improved Armor Integrity Analyzer Hackware Hacking Suite Protection Hardened Medium Armor Plating Weapon Gauss Rifle Energy Gun Gamma Rifle Energy Cannon Enhanced Nova Cannon Ballistic Gun Gauss Rifle Ballistic Cannon Heavy Gauss Cannon Launcher Neutron Missile Launcher Slashing Weapon Chainsword Piercing Weapon Vortex Lance Build | -11 -10 -10 -10 -9 -8 -8 -7 -6 -5 -5 -5 -5 -4 -4 -4 -4 -4 -4 -4 -3 -3 -3 -2 -1 -1 ------- Run | Scr Mat Min Exi Min Mat Sto Fac Fac Fac Upp Upp Zhi Pro Fac Was Fac Upp Upp War Pro Res Tes Res Acc Com Slots Evolved 18 | . . . . . 4 . 2 2 2 . . . . 2 . . . . . . 2 . 2 2 . Power 1 | . . . . . . . . 1 . . . . . . . . . . . . . . . . . Propulsion 4 | . . . . . 1 . . 1 . . . . . . . . . . . . 2 . . . . Utility 9 | . . . . . 2 . 2 . 2 . . . . . . . . . . . . . 2 1 . Weapon 4 | . . . . . 1 . . . . . . . . 2 . . . . . . . . . 1 . Parts Attached 357 | 6 1 1 . . 28 16 18 10 22 9 19 8 10 15 . 25 2 3 25 10 11 49 21 27 21 Power 25 | 1 . . . . 1 1 2 1 1 . . 1 . 1 . 3 . . 3 . . 4 2 4 . Engine 7 | 1 . . . . 1 1 2 1 1 . . . . . . . . . . . . . . . . Core 6 | . . . . . . . . . . . . 1 . 1 . 2 . . . . . 2 . . . Reactor 12 | . . . . . . . . . . . . . . . . 1 . . 3 . . 2 2 4 . Propulsion 78 | 2 . 1 . . 7 7 4 4 3 2 3 . 1 7 . 11 . 1 8 . 3 7 4 . 3 Treads 60 | 2 . 1 . . 7 6 3 4 3 2 3 . 1 2 . 5 . . 5 . 3 7 3 . 3 Leg 11 | . . . . . . . . . . . . . . 5 . 6 . . . . . . . . . Wheel 2 | . . . . . . . 1 . . . . . . . . . . . . . . . 1 . . Hover 5 | . . . . . . 1 . . . . . . . . . . . 1 3 . . . . . . Flight . | . . . . . . . . . . . . . . . . . . . . . . . . . . Utility 91 | 1 1 . . . 7 1 8 4 7 3 2 2 3 3 . 5 1 1 8 1 3 13 5 8 4 Device 40 | . . . . . . . 3 . 2 1 1 . 1 1 . 4 . . 4 1 3 8 1 6 4 Storage 10 | 1 1 . . . 2 . . 1 . . . 1 . . . . . . 1 . . 2 1 . . Processor 4 | . . . . . . . . 1 1 . . . 1 . . . . . 1 . . . . . . Hackware 4 | . . . . . 1 . . . . . . . . 1 . . 1 1 . . . . . . . Protection 33 | . . . . . 4 1 5 2 4 2 1 1 1 1 . 1 . . 2 . . 3 3 2 . Artifact . | . . . . . . . . . . . . . . . . . . . . . . . . . . Weapon 163 | 2 . . . . 13 7 4 1 11 4 14 5 6 4 . 6 1 1 6 9 5 25 10 15 14 Energy Gun 32 | . . . . . . . 1 . . . 3 1 3 . . 5 . . 3 4 2 4 . 2 4 Energy Cannon 27 | . . . . . . . . . . . . . . . . . . . . . 1 1 7 10 8 Ballistic Gun 65 | 2 . . . . 11 6 3 1 8 3 4 2 2 1 . 1 . . 1 1 2 12 2 2 1 Ballistic Cannon 4 | . . . . . . . . . . . . . . 1 . . . . . 3 . . . . . Launcher 17 | . . . . . 2 . . . 3 1 5 . 1 1 . . . . . . . 3 1 . . Special Weapon . | . . . . . . . . . . . . . . . . . . . . . . . . . . Impact Weapon . | . . . . . . . . . . . . . . . . . . . . . . . . . . Slashing Weapon 13 | . . . . . . 1 . . . . 2 2 . 1 . . 1 1 1 . . 2 . 1 1 Piercing Weapon 5 | . . . . . . . . . . . . . . . . . . . 1 1 . 3 . . . Special Melee Weapon . | . . . . . . . . . . . . . . . . . . . . . . . . . . Unidentified Prototypes 38 | . . . . . 1 1 1 . 1 . 2 3 . 1 . . . . 8 . . 13 1 5 1 Parts Lost 115 | . . . . . 7 2 5 . 11 1 3 . 5 10 . 25 2 . . 5 . 5 5 1 28 Power 10 | . . . . . . 1 1 . . . . . . 1 . 4 . . . . . . 1 . 2 Propulsion 28 | . . . . . 1 . 1 . 2 1 . . 1 3 . 10 2 . . . . 2 . . 5 Utility 35 | . . . . . 2 . 2 . 7 . 1 . 2 1 . 4 . . . 2 . . 1 1 12 Weapon 42 | . . . . . 4 1 1 . 2 . 2 . 2 5 . 7 . . . 3 . 3 3 . 9 Highest Loss Streak 23 | . . . . . 3 2 3 . 6 1 3 . 2 6 . 15 16 . . 4 . 4 2 1 23 Average Slot Usage (%) 87 | . 97 100 100 100 99 98 94 90 89 83 95 78 93 80 75 74 16 23 61 85 87 87 82 83 53 Engine 6 | . 14 14 14 14 9 7 6 10 11 11 11 11 11 4 . . . . . . . . . . . Core 1 | . . . . . . . . . . . . 1 5 7 10 8 . . . . . 3 1 . . Reactor 2 | . . . . . . . . . . . . . . . . 2 . . 4 10 9 7 10 11 6 Treads 19 | . 28 28 28 28 26 26 14 21 22 22 22 22 21 14 . 1 . . 7 20 24 17 11 11 6 Device 8 | . . . . . . . 6 6 7 9 15 16 13 4 5 9 5 5 8 14 17 15 12 18 12 Storage 12 | . 25 28 28 28 16 18 15 12 11 11 11 11 11 10 10 9 . . 2 5 4 8 8 7 4 Processor 4 | . . . . . . . . 4 5 5 5 5 5 10 10 10 10 10 10 10 9 9 8 7 5 Hackware 2 | . . . . . 2 9 7 1 . . . . . 4 5 4 . 6 7 . . . . . . Protection 6 | . . . . . 16 8 15 13 11 2 9 5 8 4 5 1 . . 2 2 . 2 6 3 . Energy Gun 2 | . . . . . . . 2 . . . 1 . 6 1 . 4 . . 3 12 10 2 4 2 . Energy Cannon 1 | . . . . . . . . . . . . . . . . . . . . . 1 5 9 13 9 Ballistic Gun 13 | . 28 28 28 28 26 26 20 15 15 15 12 1 9 9 . . . . . 2 5 10 3 2 1 Naked Turns 15 | . . . . . . . . . . . . . . . . . . . . . . . . . 15 Heaviest Build 175 | 11 15 15 15 15 49 51 74 79 93 83 88 85 104 104 83 96 4 4 108 112 108 105 151 175 140 Greatest Support 210 | 40 40 40 40 40 60 62 72 84 100 103 109 109 109 108 95 95 3 3 108 108 165 210 210 120 120 Greatest Overweight (x) 6 | . . . . . . 1 2 1 1 1 1 . 1 3 . 2 1 1 2 1 . . 5 6 4 Average Overweight (x) . | . . . . . . . 1 . . . . . . . . . . . . . . . 2 4 1 Largest Inventory Capacity 16 | 6 8 8 8 8 16 16 16 16 16 16 16 16 16 16 16 16 4 4 8 8 8 12 12 12 12 Average Capacity 12 | 5 7 8 8 8 10 16 16 15 16 16 16 16 16 16 16 14 4 4 6 8 8 11 12 12 9 Most Carried 16 | 4 4 8 8 8 10 16 16 16 13 14 16 16 16 14 11 11 4 4 8 8 8 12 12 12 12 Average Carried 10 | 1 3 5 8 8 7 13 14 13 10 11 15 15 13 12 10 8 3 3 6 8 8 11 11 10 6 Final Capacity 16 | 6 8 8 8 8 16 16 16 16 16 16 16 16 16 16 16 4 4 4 8 8 8 12 12 12 4 Final Carried 16 | 2 4 8 8 8 7 14 16 14 9 13 15 16 12 10 11 3 4 4 8 8 8 12 12 12 . Class Distribution -------------------- 28% | Scavenger-Tank 19% | Scavenger-Mutant 15% | Mutant 12% | Scavenger-Gunner 7% | Tank 4% | Generator-Tank 3% | Generator-Mutant Dominant Class ---------------- Mutant | -10/Materials Mutant | -10/Mines Mutant | -10/Exiles Mutant | -9/Mines Scavenger-Tank | -8/Materials Scavenger-Tank | -8/Storage Tank | -7/Factory Scavenger-Mutant | -6/Factory Scavenger-Tank | -5/Factory Scavenger-Gunner | -5/Upper Caves Scavenger-Mutant | -5/Upper Caves Scavenger-Mutant | -5/Zhirov Scavenger-Tank | -4/Proximity Caves Scavenger-Gunner | -4/Factory Scavenger-Mutant | -4/Waste Scavenger-Mutant | -4/Factory Mutant | -4/Upper Caves Mutant | -4/Upper Caves Derelict-Mutant | -4/Warlord Generator-Mutant | -3/Proximity Caves Scavenger-Gunner | -3/Research Scavenger-Tank | -3/Testing Generator-Tank | -2/Research Scavenger-Executioner | -1/Access Mutant | -1/Command Resources | -11 -10 -10 -10 -9 -8 -8 -7 -6 -5 -5 -5 -5 -4 -4 -4 -4 -4 -4 -4 -3 -3 -3 -2 -1 -1 ----------- Run | Scr Mat Min Exi Min Mat Sto Fac Fac Fac Upp Upp Zhi Pro Fac Was Fac Upp Upp War Pro Res Tes Res Acc Com Matter Collected 9005 | 296 64 38 . 32 1023 719 856 63 1128 403 821 55 260 238 . 417 53 44 275 122 202 1058 464 301 73 Remotely . | . . . . . . . . . . . . . . . . . . . . . . . . . . Salvage Created 17638 | 94 243 45 . 44 1746 1177 988 63 2018 447 1313 349 260 299 . 929 87 72 192 638 317 3163 1301 1467 386 Parts 833 | 4 16 7 . 4 103 74 50 5 106 22 41 3 7 23 . 37 2 1 8 25 9 144 52 64 26 Haulers Intercepted 11 | . 1 . . . 3 3 1 . . . . . . . . . . . . . . 1 1 1 . Recyclers Shooed 13 | . 1 . . . 1 2 1 . 4 . 1 . . . . . . . . . . 1 1 1 . Parts Field Recycled . | . . . . . . . . . . . . . . . . . . . . . . . . . . Retrieved Matter . | . . . . . . . . . . . . . . . . . . . . . . . . . . Parts Self-Destructed 146 | . . . . . . . . . . 9 17 2 7 . . . . . 89 22 . . . . . Prevented 25 | . . . . . . . . . . 5 15 . . . . . . . 5 . . . . . . Kills | -11 -10 -10 -10 -9 -8 -8 -7 -6 -5 -5 -5 -5 -4 -4 -4 -4 -4 -4 -4 -3 -3 -3 -2 -1 -1 ------- Run | Scr Mat Min Exi Min Mat Sto Fac Fac Fac Upp Upp Zhi Pro Fac Was Fac Upp Upp War Pro Res Tes Res Acc Com Combat Hostiles Destroyed 237 | . 3 3 . 3 32 19 21 1 27 5 16 . 7 8 . 11 . . . 11 4 33 15 13 5 Melee 14 | . . . . . . . . . . . . . . . . 8 . . . 5 . . . . 1 Guns 129 | . 3 3 . 3 24 18 21 1 18 1 5 . 4 3 . 3 . . . 6 3 10 3 . . Cannons 30 | . . . . . . . . . . . . . . 1 . . . . . . 1 7 4 13 4 AOE 48 | . . . . . 8 1 . . 7 4 9 . 3 4 . . . . . . . 4 8 . . Classes Destroyed 22 | 2 2 2 . . 3 2 2 . 1 1 2 . . . . . 1 . . . . 2 1 1 . Worker 21 | . . 2 . . 3 . 2 . 5 . . . . 1 . 1 . . . . . 3 3 . 1 Builder 16 | . . . . . 3 1 . . 5 . . . . 2 . . . . . . . 5 . . . Tunneler 3 | 1 . . . . . . . . 1 . . . . . . 1 . . . . . . . . . Hauler 11 | . 1 . . . 3 3 1 . . . . . . . . . . . . . . 1 1 1 . Recycler 14 | 1 1 . . . 3 2 1 . 1 . . . . . . 1 . . . . . 3 . 1 . Operator 3 | . . . . . . 1 1 . . . . . . . . . . . . . . . 1 . . Watcher 5 | . . . . . 3 1 . . . . . . . . . . . . . . . . 1 . . Swarmer 42 | . . 3 . 3 10 3 7 . . . 2 . . 4 . 1 . . . 5 . 3 . . 1 Grunt 101 | . 3 . . . 14 7 8 . 16 4 9 . 3 2 . 7 . . . 5 . 13 5 5 . Brawler 6 | . . . . . . . 1 . . . . . 1 1 . 1 . . . . . . 1 1 . Duelist 3 | . . . . . . . . . 1 . 2 . . . . . . . . . . . . . . Protector 1 | . . . . . . . . . . . 1 . . . . . . . . . . . . . . Researcher 3 | . . . . . . . . . . . 1 . . . . . . . . . . 2 . . . Sentry 32 | . . . . . 8 7 2 1 1 . 2 . . . . 1 . . 1 1 2 4 1 1 . Hunter 26 | . . . . . . 2 . . 6 . . . . . . . . . . . 2 5 5 4 2 Programmer 19 | . . . . . . . 3 . 3 . . . 2 1 . 1 . . 2 . . 5 . . 2 Q-Series 1 | . . . . . . . . . . . . . . . . . . . . . . . . 1 . Behemoth 4 | . . . . . . . . . . 1 . . 1 . . . . . . . . . 1 1 . Striker 2 | . . . . . . . . . . . . . . . . . . . . . . 2 . . . Executioner 2 | . . . . . . . . . . . . . . . . . . . . . . . 2 . . Alpha 7 1 | . . . . . . . . . . . . . . . . . . . . . . 1 . . . Packrat 4 | . . . . . . . . . . . 4 . . . . . . . . . . . . . . Savage 1 | . . . . . . . . . . . 1 . . . . . . . . . . . . . . Mutant 2 | . . . . . . . . . . . . . . . . . 1 1 . . . . . . . Best Kill Streak 14 | 2 2 3 . 3 14 4 5 1 13 4 5 . 4 7 . 3 . . . 10 2 11 6 4 4 Combat Bots Only 10 | . 2 3 . 3 10 3 4 1 7 4 5 . 4 5 . 2 . . . 10 2 6 6 4 4 Max Kills in Single Turn 4 | 1 1 2 . 1 4 2 2 1 3 2 2 . 1 3 . 1 1 1 1 1 1 4 3 1 1 Gunslinging 1 | . . 1 . . 1 1 1 . . . . . . . . . . . . . . . . . . Exploded 4 | . . . . . 4 1 . . 3 2 2 . 1 3 . . . . . . . 2 2 . . Melee 1 | . . . . . . . . . . . . . . . . 1 . . . 1 . . . . 1 Uniques/NPCs Destroyed 1 | . . . . . . . . . . . . . . . . . . . . . . . . 1 . Zhirov (-1/Access) Combat | -11 -10 -10 -10 -9 -8 -8 -7 -6 -5 -5 -5 -5 -4 -4 -4 -4 -4 -4 -4 -3 -3 -3 -2 -1 -1 -------- Run | Scr Mat Min Exi Min Mat Sto Fac Fac Fac Upp Upp Zhi Pro Fac Was Fac Upp Upp War Pro Res Tes Res Acc Com Damage Taken 31303 | . 55 46 . 111 1643 1090 2397 61 3088 219 632 . 1064 2238 . 3137 479 53 137 1691 371 3656 1182 1574 6379 Core 3670 | . . . . 27 102 79 237 . 214 36 25 . 92 187 . 387 234 53 . 108 . 201 65 33 1590 Absorbed by Shields 641 | . . . . . . . . . . . . . . . . . . . . . . . . 641 . Reduced by Siege Mode 508 | . . . . . . . . . . . . . . . . . . . . . . 137 45 16 310 Core Remaining (%) 74 | 100 . . . 89 . 67 66 100 . . . . 63 . . . . . . 10 . 84 95 . . Volleys Fired 704 | 6 10 4 . 6 88 65 79 2 85 12 53 . 22 29 . 16 . . 14 18 9 90 35 36 25 Largest 6 | 2 2 2 . 2 3 3 3 3 3 3 3 . 3 4 . 3 . . 2 4 5 5 5 6 5 Hottest 593 | 40 40 40 . 40 69 69 120 79 84 84 121 . 160 151 . 226 . . 146 293 346 322 548 593 518 Shots Fired 1829 | 12 20 8 . 12 254 190 183 6 223 28 88 . 44 65 . 35 . . 17 55 36 251 103 127 72 Gun 1416 | 12 20 8 . 12 251 190 183 6 210 24 64 . 38 54 . 34 . . 17 54 27 151 49 11 1 Cannon 349 | . . . . . . . . . . . . . . 7 . 1 . . . 1 9 97 47 116 71 Launcher 64 | . . . . . 3 . . . 13 4 24 . 6 4 . . . . . . . 3 7 . . Special . | . . . . . . . . . . . . . . . . . . . . . . . . . . Kinetic 1194 | 12 20 8 . 12 251 190 174 6 210 24 56 . 17 57 . 2 . . . 10 15 102 26 1 1 Thermal 379 | . . . . . . . 9 . . . . . 19 . . 33 . . 17 45 18 12 46 112 68 Explosive 37 | . . . . . 3 . . . 2 . 12 . 6 4 . . . . . . . 3 7 . . Electromagnetic 212 | . . . . . . . . . 11 4 20 . 2 4 . . . . . . 3 134 24 10 . Entropic 7 | . . . . . . . . . . . . . . . . . . . . . . . . 4 3 Robot Hit Streak 45 | 6 7 2 . 4 15 24 13 5 18 5 17 . 23 11 . 6 . . 8 11 20 45 33 34 30 Robot Miss Streak 6 | 1 2 2 . 1 4 3 6 2 5 2 1 . 4 3 . 3 . . 1 2 1 4 3 4 3 Penetration Max 1 | . . . . . . . 1 . 1 . . . . . . . . . . 1 . 1 1 . . Secondary Targets 29 | . . 2 . 1 8 4 6 . 1 . . . . 1 . . . . . 4 . 1 1 . . Max Gunslinging Chain 1 | . . 1 . 1 1 1 1 . 1 . . . . 1 . . . . . 1 . 1 1 . . Shots Hit Robots 1399 | 9 13 4 . 7 176 143 136 6 162 18 56 8 34 49 . 67 1 4 25 47 27 183 84 86 54 Core Hits 760 | 3 8 3 . 3 82 57 66 3 127 17 56 4 33 25 . 30 1 1 12 21 12 95 51 34 16 Critical Hits 24 | . . . . . 1 . 1 . 3 . . . . 4 . 2 . . 2 1 3 5 1 1 . Critical Kills 6 | . . . . . 1 . . . . . . . . 1 . . . . 1 . 2 1 . . . Critical Parts Destroyed 17 | . . . . . . . 1 . 2 . . . . 3 . 2 . . 1 1 1 4 1 1 . Melee Attacks 112 | . . . . . . 1 . . . . 6 8 . 3 . 58 1 4 11 10 . 8 . 2 . Impact . | . . . . . . . . . . . . . . . . . . . . . . . . . . Slashing 95 | . . . . . . 1 . . . . 6 8 . 3 . 58 1 4 10 . . 2 . 2 . Piercing 6 | . . . . . . . . . . . . . . . . . . . . . . 6 . . . Entropic 11 | . . . . . . . . . . . . . . . . . . . 1 10 . . . . . Sneak Attacks 26 | . . . . . . . . . . . 3 . . . . 5 1 4 10 . . 3 . . . Combat Hostiles . | . . . . . . . . . . . . . . . . . . . . . . . . . . Follow-up Attacks . | . . . . . . . . . . . . . . . . . . . . . . . . . . Damage Inflicted 47979 | 104 173 43 . 78 3222 1882 2330 90 4758 752 2454 817 1729 1836 . 2507 115 402 1421 1406 660 7879 5177 4628 3516 Guns 18870 | 104 171 36 . 78 2426 1744 2171 90 3248 365 882 . 753 851 . 520 . . 343 764 504 2677 979 164 . Cannons 12482 | . . . . . . . . . . . . . . 241 . . . . . . 147 2565 1581 4464 3484 Explosions 10554 | . . . . . 710 91 100 . 1510 387 1335 . 976 662 . . . . . . . 2166 2617 . . Melee 5721 | . . . . . . . . . . . 237 817 . 80 . 1962 115 402 1078 642 . 388 . . . Ramming 352 | . 2 7 . . 86 47 59 . . . . . . 2 . 25 . . . . 9 83 . . 32 Kinetic 14873 | 104 171 36 . 78 2426 1744 2059 90 3248 365 759 . 179 1027 . 15 . . . 190 268 1643 471 . . Thermal 10022 | . . . . . . . 112 . 313 21 48 . 521 . . 505 . . 343 574 327 456 1540 3475 1787 Explosive 6619 | . . . . . 710 91 100 . 37 . 600 . 976 662 . . . . . . . 906 2537 . . Electromagnetic 7706 | . . . . . . . . . 1160 366 810 . 53 65 . . . . . . 56 4403 629 164 . Impact . | . . . . . . . . . . . . . . . . . . . . . . . . . . Slashing 4877 | . . . . . . . . . . . 237 817 . 80 . 1962 115 402 1078 . . 186 . . . Piercing 202 | . . . . . . . . . . . . . . . . . . . . . . 202 . . . Entropic 3328 | . . . . . . . . . . . . . . . . . . . . 642 . . . 989 1697 Highest Corruption 13 | . . . . . . . 8 . 6 6 6 6 6 4 4 9 9 9 9 . . 7 . 1 13 Average Corruption 5 | . . . . . . . 5 . 4 6 6 6 6 1 4 6 9 9 9 . . 4 . 1 6 Corruption Purged . | . . . . . . . . . . . . . . . . . . . . . . . . . . Effects 247 | . . . . . . . 29 . 11 20 71 10 16 2 1 26 9 8 1 . . 23 . 3 17 Message Errors 50 | . . . . . . . 6 . 2 5 18 . 4 . . 2 1 1 . . . 8 . 1 2 Matter Fused 63 | . . . . . . . 4 . 1 6 21 5 7 . . 5 5 2 1 . . 4 . . 2 Heat Flow Errors 24 | . . . . . . . 3 . . . 12 1 2 . . 3 1 1 . . . 1 . . . Energy Discharges 20 | . . . . . . . 3 . . 2 8 . . 1 1 1 . . . . . 2 . . 2 Parts Rejected 2 | . . . . . . . . . . . . . . . . 1 . . . . . . . . 1 Data Loss (minor) 26 | . . . . . . . 4 . 1 3 7 2 1 . . 4 2 1 . . . . . . 1 Data Loss (major) 9 | . . . . . . . 2 . 1 1 1 . . . . . . 2 . . . 1 . . 1 Misfires 6 | . . . . . . . . . 1 . 2 . . . . 2 . . . . . 1 . . . Misdirections 4 | . . . . . . . . . . . . . . . . . . . . . . . . . 4 Targeting Errors 36 | . . . . . . . 5 . 5 3 2 2 2 . . 7 . 1 . . . 5 . 1 3 Weapon Failures 7 | . . . . . . . 2 . . . . . . 1 . 1 . . . . . 1 . 1 1 Overload Shots . | . . . . . . . . . . . . . . . . . . . . . . . . . . Overflow Damage 1860 | . . . . . 9 . 14 . 26 . 24 258 . 5 . 82 . 90 255 1 . 304 172 487 133 Projectiles 673 | . . . . . . . . . . . . . . . . . . . . . . 27 26 487 133 Explosions 326 | . . . . . 9 . . . 26 . . . . 5 . . . . . . . 140 146 . . Melee 861 | . . . . . . . 14 . . . 24 258 . . . 82 . 90 255 1 . 137 . . . Knockbacks 7 | . . . . . 3 . 1 . . . . . . . . 1 . . . . 2 . . . . Impact 5 | . . . . . 3 . 1 . . . . . . . . 1 . . . . . . . . . Kinetic 2 | . . . . . . . . . . . . . . . . . . . . . 2 . . . . Secondary . | . . . . . . . . . . . . . . . . . . . . . . . . . . Self-Inflicted Damage 666 | . . . . . . 79 90 . 212 . 161 . . . . 11 . . . . . 95 . . 18 Shots 19 | . . . . . . 1 1 . 9 . 7 . . . . . . . . . . 1 . . . Rammed 33 | . 1 . . . 9 7 3 . . . . . . . . 7 . . . . 1 3 . . 2 Targets Rammed 41 | . 1 2 . . 11 9 3 . . . . . . 1 . 7 . . . . 1 4 . . 2 Kicked 1 | . . . . . . . . . . . . . . 1 . . . . . . . . . . . Crushed 7 | . . 2 . . 2 2 . . . . . . . . . . . . . . . 1 . . . Highest Temperature 586 | . . . . . 169 48 586 66 313 9 252 94 120 12 . 116 43 35 24 173 78 144 193 197 198 Average Temperature 86 | . . . . . 48 16 141 41 40 5 74 66 46 7 . 46 43 35 16 48 39 53 114 115 110 Received Heat Transfer 4156 | . 30 . . . 738 252 531 18 405 33 96 . 132 309 . 414 60 . 12 288 54 366 126 274 18 Effects 13 | . . . . . . . 12 . . . 1 . . . . . . . . . . . . . . Energy Bleed 3 | . . . . . . . 2 . . . 1 . . . . . . . . . . . . . . Interference 5 | . . . . . . . 5 . . . . . . . . . . . . . . . . . . Matter Decay 2 | . . . . . . . 2 . . . . . . . . . . . . . . . . . . Damage (major) 2 | . . . . . . . 2 . . . . . . . . . . . . . . . . . . Damage (core) 1 | . . . . . . . 1 . . . . . . . . . . . . . . . . . . Siege Activations 12 | . . . . . . . . . . . . . . . . . . . . . . 4 2 3 3 Total Turns 234 | . . . . . . . . . . . . . . . . . . . . . . 87 37 48 62 Longest Duration 31 | . . . . . . . . . . . . . . . . . . . . . . 31 26 17 29 Robots Corrupted 17 | . . . . . . . . . 2 . 2 . . . . . . . . . . 13 . . . Combat Hostiles 16 | . . . . . . . . . 2 . 2 . . . . . . . . . . 12 . . . Parts Fried 64 | . . . . . . . . . 3 5 9 . . . . . . . . . . 45 2 . . Impact Corruptions 2 | . . . . . . . 1 . . . . . . . . . . . . . . 1 . . . Robots Melted . | . . . . . . . . . . . . . . . . . . . . . . . . . . Combat Hostiles . | . . . . . . . . . . . . . . . . . . . . . . . . . . Parts Melted 18 | . . . . . . . . . . . . . . . . 2 . . . 2 4 . . 10 . Heat Transferred 10677 | . . . . . . . 222 . 350 50 50 . 1150 . . 879 . . 463 940 635 624 1052 2958 1304 Parts Sabotaged . | . . . . . . . . . . . . . . . . . . . . . . . . . . Parts Stolen . | . . . . . . . . . . . . . . . . . . . . . . . . . . Parts Stripped . | . . . . . . . . . . . . . . . . . . . . . . . . . . Power Chain Reactions 7 | . . . . . . . . . 3 1 1 . . . . . . . . . . 2 . . . Missiles Intercepted . | . . . . . . . . . . . . . . . . . . . . . . . . . . Alert | -11 -10 -10 -10 -9 -8 -8 -7 -6 -5 -5 -5 -5 -4 -4 -4 -4 -4 -4 -4 -3 -3 -3 -2 -1 -1 ------- Run | Scr Mat Min Exi Min Mat Sto Fac Fac Fac Upp Upp Zhi Pro Fac Was Fac Upp Upp War Pro Res Tes Res Acc Com Peak Influence 904 | 10 115 117 . 70 408 408 538 200 716 . . . . 256 72 403 . . . . 161 901 904 888 716 Initial 484 | . 6 . . . 27 123 90 151 . . . . . . 42 50 . . . . . 90 484 452 465 Average 309 | 7 66 63 . 60 229 232 322 127 335 . . . . 113 58 208 . . . . 119 363 770 640 561 Maximum Alert Level 3 | . . . . . 2 2 2 1 3 . . . . 1 . 2 . . . . . 3 3 3 3 Low Security (%) 35 | 100 100 100 . 100 31 43 18 63 26 . . . . 73 100 39 . . . . 100 9 . . . Level 1 37 | . . . . . 64 51 53 36 33 . . . . 26 . 58 . . . . . 69 . . . Level 2 17 | . . . . . 4 4 27 . 37 . . . . . . 1 . . . . . 4 25 71 99 Level 3 9 | . . . . . . . . . 2 . . . . . . . . . . . . 16 74 28 . Level 4 . | . . . . . . . . . . . . . . . . . . . . . . . . . . Level 5 . | . . . . . . . . . . . . . . . . . . . . . . . . . . High Security . | . . . . . . . . . . . . . . . . . . . . . . . . . . Max Security . | . . . . . . . . . . . . . . . . . . . . . . . . . . Squads Dispatched 42 | . 1 . . . 4 2 3 . 4 . 1 . . 2 . 3 . . . . 2 7 2 8 3 Investigation 6 | . . . . . 2 . . . 2 . . . . . . . . . . . . . . 2 . Extermination 10 | . . . . . . . 2 . 1 . . . . 1 . 1 . . . . 1 2 . 2 . Reinforcement 16 | . 1 . . . 1 2 1 . 1 . . . . . . . . . . . 1 3 2 1 3 Assault 1 | . . . . . . . . . . . 1 . . . . . . . . . . . . . . Garrison 9 | . . . . . 1 . . . . . . . . 1 . 2 . . . . . 2 . 3 . Intercept . | . . . . . . . . . . . . . . . . . . . . . . . . . . Construction Impeded 4 | . . . . . 1 . . . 1 . . . . . . . . . . . . 1 . 1 . Haulers Reinforced . | . . . . . . . . . . . . . . . . . . . . . . . . . . Stealth | -11 -10 -10 -10 -9 -8 -8 -7 -6 -5 -5 -5 -5 -4 -4 -4 -4 -4 -4 -4 -3 -3 -3 -2 -1 -1 --------- Run | Scr Mat Min Exi Min Mat Sto Fac Fac Fac Upp Upp Zhi Pro Fac Was Fac Upp Upp War Pro Res Tes Res Acc Com Distress Signals 32 | . . . . . 2 6 1 . . . . . . 3 . 2 . . . . . 1 14 1 2 Communications Jammed . | . . . . . . . . . . . . . . . . . . . . . . . . . . Distress Signals . | . . . . . . . . . . . . . . . . . . . . . . . . . . Times Spotted 454 | . 4 5 . 3 42 26 29 1 37 5 17 . 7 31 3 47 7 7 26 19 5 49 22 22 40 Peak Tracking Total 19 | . 2 3 . 3 10 3 6 1 8 4 5 . 4 8 4 15 6 4 6 12 2 8 7 6 19 Tactical Retreats 44 | . . . . . 2 1 3 . 2 . 1 . . 3 . 12 3 2 . 6 . 1 . 1 7 Traps | -11 -10 -10 -10 -9 -8 -8 -7 -6 -5 -5 -5 -5 -4 -4 -4 -4 -4 -4 -4 -3 -3 -3 -2 -1 -1 ------- Run | Scr Mat Min Exi Min Mat Sto Fac Fac Fac Upp Upp Zhi Pro Fac Was Fac Upp Upp War Pro Res Tes Res Acc Com Traps Triggered 10 | . . . . . 1 . 1 1 1 . . . . 2 . . . . . . . 3 . . 1 Indirectly 1 | . . . . . . . . . . . . . . . . . . . . . . 1 . . . Trap Hack Attempts . | . . . . . . . . . . . . . . . . . . . . . . . . . . Triggered . | . . . . . . . . . . . . . . . . . . . . . . . . . . Disarmed . | . . . . . . . . . . . . . . . . . . . . . . . . . . Reprogrammed . | . . . . . . . . . . . . . . . . . . . . . . . . . . Reused . | . . . . . . . . . . . . . . . . . . . . . . . . . . Traps Extracted . | . . . . . . . . . . . . . . . . . . . . . . . . . . Installed . | . . . . . . . . . . . . . . . . . . . . . . . . . . Triggered 10 | . . . . . . . . . . . . . . . . . . . 10 . . . . . . Machines | -11 -10 -10 -10 -9 -8 -8 -7 -6 -5 -5 -5 -5 -4 -4 -4 -4 -4 -4 -4 -3 -3 -3 -2 -1 -1 ---------- Run | Scr Mat Min Exi Min Mat Sto Fac Fac Fac Upp Upp Zhi Pro Fac Was Fac Upp Upp War Pro Res Tes Res Acc Com Machines Disabled 41 | . . . . . 1 2 7 . 6 . 4 . . 1 . 1 . . 1 1 . 8 2 5 2 Max in Single Turn 5 | . . . . . 1 1 5 . 2 . 1 . . . . 1 . . 1 1 . 2 2 1 1 Garrison Access 1 | . . . . . . 1 . . . . . . . . . . . . . . . . . . . Machines Sabotaged . | . . . . . . . . . . . . . . . . . . . . . . . . . . Garrisons Compromised . | . . . . . . . . . . . . . . . . . . . . . . . . . . Overloaded Fab Kills . | . . . . . . . . . . . . . . . . . . . . . . . . . . Fab Network Shutdowns . | . . . . . . . . . . . . . . . . . . . . . . . . . . Hacking | -11 -10 -10 -10 -9 -8 -8 -7 -6 -5 -5 -5 -5 -4 -4 -4 -4 -4 -4 -4 -3 -3 -3 -2 -1 -1 --------- Run | Scr Mat Min Exi Min Mat Sto Fac Fac Fac Upp Upp Zhi Pro Fac Was Fac Upp Upp War Pro Res Tes Res Acc Com Machines Accessed 41 | . 2 . 1 . 6 10 5 2 1 . . 4 . 3 . 1 . . 1 1 . . . 3 1 Terminals 31 | . 2 . . . 6 8 4 1 1 . . . . 3 . 1 . . . 1 . . . 3 1 Fabricators 1 | . . . . . . . 1 . . . . . . . . . . . . . . . . . . Repair Stations 2 | . . . . . . 1 . 1 . . . . . . . . . . . . . . . . . Recycling Units . | . . . . . . . . . . . . . . . . . . . . . . . . . . Scanalyzers . | . . . . . . . . . . . . . . . . . . . . . . . . . . Garrison Access 1 | . . . . . . 1 . . . . . . . . . . . . . . . . . . . Total Hacks 117 | . 5 . 1 . 19 23 12 6 3 . . 17 . 12 . 5 . . 1 6 . . . 6 1 Successful 62 | . 2 . 1 . 7 13 5 4 1 . . 17 . 3 . 1 . . 1 6 . . . 1 . Failed 55 | . 3 . . . 12 10 7 2 2 . . . . 9 . 4 . . . . . . . 5 1 Catastrophic 11 | . . . . . 2 2 . 1 1 . . . . . . 2 . . . . . . . 2 1 Database Lockouts . | . . . . . . . . . . . . . . . . . . . . . . . . . . Manual 35 | . 5 . . . 14 9 . . . . . . . 7 . . . . . . . . . . . Terminals 88 | . 5 . . . 19 18 11 2 3 . . . . 12 . 5 . . . 6 . . . 6 1 Fabricators 1 | . . . . . . . 1 . . . . . . . . . . . . . . . . . . Repair Stations 8 | . . . . . . 4 . 4 . . . . . . . . . . . . . . . . . Recycling Units . | . . . . . . . . . . . . . . . . . . . . . . . . . . Scanalyzers . | . . . . . . . . . . . . . . . . . . . . . . . . . . Garrison Access 1 | . . . . . . 1 . . . . . . . . . . . . . . . . . . . Terminal Hacks 47 | . 2 . 1 . 7 5 4 . 1 . . 17 . 1 . 1 . . 1 6 . . . 1 . Record 12 | . . . 1 . . . . . . . . 5 . . . . . . . 6 . . . . . Part Schematic 4 | . . . . . . . . . . . . 4 . . . . . . . . . . . . . Robot Analysis 8 | . 2 . . . 1 . 1 . . . . 4 . . . . . . . . . . . . . Prototype ID Bank 4 | . . . . . . . . . . . . 4 . . . . . . . . . . . . . Open Door 4 | . . . . . . 2 . . . . . . . . . . . . 1 . . . . 1 . Level Access Points 1 | . . . . . . . . . . . . . . 1 . . . . . . . . . . . Branch Access Points 3 | . . . . . 1 . . . 1 . . . . . . 1 . . . . . . . . . Terminal Index 3 | . . . . . 1 1 1 . . . . . . . . . . . . . . . . . . Garrison Index 1 | . . . . . . . 1 . . . . . . . . . . . . . . . . . . Alert Level 1 | . . . . . 1 . . . . . . . . . . . . . . . . . . . . Unreport Threat 4 | . . . . . 2 1 1 . . . . . . . . . . . . . . . . . . Locate Traps 1 | . . . . . . 1 . . . . . . . . . . . . . . . . . . . Hauler Manifests 1 | . . . . . 1 . . . . . . . . . . . . . . . . . . . . Fabricator Hacks 1 | . . . . . . . 1 . . . . . . . . . . . . . . . . . . Network Status 1 | . . . . . . . 1 . . . . . . . . . . . . . . . . . . Repair Station Hacks 8 | . . . . . . 4 . 4 . . . . . . . . . . . . . . . . . Scan Component 4 | . . . . . . 2 . 2 . . . . . . . . . . . . . . . . . Repair 4 | . . . . . . 2 . 2 . . . . . . . . . . . . . . . . . Recycling Unit Hacks . | . . . . . . . . . . . . . . . . . . . . . . . . . . Scanalyzer . | . . . . . . . . . . . . . . . . . . . . . . . . . . Garrison Access Hacks 1 | . . . . . . 1 . . . . . . . . . . . . . . . . . . . Seal Access 1 | . . . . . . 1 . . . . . . . . . . . . . . . . . . . Unauthorized Hacks 5 | . . . . . . 3 . . . . . . . 2 . . . . . . . . . . . Terminals 5 | . . . . . . 3 . . . . . . . 2 . . . . . . . . . . . Botnet 4 | . . . . . . 2 . . . . . . . 2 . . . . . . . . . . . Operators 1 | . . . . . . 1 . . . . . . . . . . . . . . . . . . . Fabricators . | . . . . . . . . . . . . . . . . . . . . . . . . . . Repair Stations . | . . . . . . . . . . . . . . . . . . . . . . . . . . Recycling Units . | . . . . . . . . . . . . . . . . . . . . . . . . . . Scanalyzers . | . . . . . . . . . . . . . . . . . . . . . . . . . . Garrison Access . | . . . . . . . . . . . . . . . . . . . . . . . . . . Data Cores Recovered . | . . . . . . . . . . . . . . . . . . . . . . . . . . Used . | . . . . . . . . . . . . . . . . . . . . . . . . . . Hacking Detections 31 | . 2 . . . 6 8 4 2 1 . . . . 3 . 1 . . . 1 . . . 2 1 Full Trace Events 4 | . . . . . 1 . . . 1 . . . . . . . . . . . . . . 2 . Feedback Events . | . . . . . . . . . . . . . . . . . . . . . . . . . . Feedback Blocked . | . . . . . . . . . . . . . . . . . . . . . . . . . . Robot Schematics Acquired . | . . . . . . . . . . . . . . . . . . . . . . . . . . Robots Built . | . . . . . . . . . . . . . . . . . . . . . . . . . . Matter . | . . . . . . . . . . . . . . . . . . . . . . . . . . Time . | . . . . . . . . . . . . . . . . . . . . . . . . . . Total Robot Build Rating . | . . . . . . . . . . . . . . . . . . . . . . . . . . Part Schematics Acquired 4 | . . . . . . . . . . . . 4 . . . . . . . . . . . . . Parts Built . | . . . . . . . . . . . . . . . . . . . . . . . . . . Matter . | . . . . . . . . . . . . . . . . . . . . . . . . . . Time . | . . . . . . . . . . . . . . . . . . . . . . . . . . Total Part Build Rating . | . . . . . . . . . . . . . . . . . . . . . . . . . . Parts Repaired 4 | . . . . . . 2 . 2 . . . . . . . . . . . . . . . . . Time 140 | . . . . . . 70 . 70 . . . . . . . . . . . . . . . . . Parts Recycled . | . . . . . . . . . . . . . . . . . . . . . . . . . . Recycled Matter . | . . . . . . . . . . . . . . . . . . . . . . . . . . Retrieved Matter . | . . . . . . . . . . . . . . . . . . . . . . . . . . Retrieved Components . | . . . . . . . . . . . . . . . . . . . . . . . . . . Parts Scanalyzed . | . . . . . . . . . . . . . . . . . . . . . . . . . . Part Schematics Acquired . | . . . . . . . . . . . . . . . . . . . . . . . . . . Parts Damaged . | . . . . . . . . . . . . . . . . . . . . . . . . . . Bothacking | -11 -10 -10 -10 -9 -8 -8 -7 -6 -5 -5 -5 -5 -4 -4 -4 -4 -4 -4 -4 -3 -3 -3 -2 -1 -1 ------------ Run | Scr Mat Min Exi Min Mat Sto Fac Fac Fac Upp Upp Zhi Pro Fac Was Fac Upp Upp War Pro Res Tes Res Acc Com Used RIF Installer . | . . . . . . . . . . . . . . . . . . . . . . . . . . Robots Hacked . | . . . . . . . . . . . . . . . . . . . . . . . . . . Non-combat . | . . . . . . . . . . . . . . . . . . . . . . . . . . Combat . | . . . . . . . . . . . . . . . . . . . . . . . . . . Robot Hacks Applied . | . . . . . . . . . . . . . . . . . . . . . . . . . . Relay Couplers Released 4 | . . . . . . . 4 . . . . . . . . . . . . . . . . . . Programmers 4 | . . . . . . . 4 . . . . . . . . . . . . . . . . . . Robots Rewired . | . . . . . . . . . . . . . . . . . . . . . . . . . . Allies Hacked . | . . . . . . . . . . . . . . . . . . . . . . . . . . Hacks Repelled . | . . . . . . . . . . . . . . . . . . . . . . . . . . Allies | -11 -10 -10 -10 -9 -8 -8 -7 -6 -5 -5 -5 -5 -4 -4 -4 -4 -4 -4 -4 -3 -3 -3 -2 -1 -1 -------- Run | Scr Mat Min Exi Min Mat Sto Fac Fac Fac Upp Upp Zhi Pro Fac Was Fac Upp Upp War Pro Res Tes Res Acc Com Total Allies 8 | . . 2 . . . . . . . . . . . 3 . . . . . . . . . 3 . Largest Group 3 | . . 2 2 . . . . . . . . . . 3 . . . . . . . . . 3 . Highest-Rated Group 368 | . . 42 42 . . . . . . . . . . 138 . . . . . . . . . 368 . Highest-Rated Ally 131 | . . 31 31 . . . . . . . . . . 46 . . . . . . . . . 131 . Total Orders . | . . . . . . . . . . . . . . . . . . . . . . . . . . Ally Attacks 52 | . . 1 . . . . . . . . . . . 19 . . . . . . . . . 32 . Total Damage 2147 | . . 21 . . . . . . . . . . . 575 . . . . . . . . . 1551 . Kills 9 | . . 1 . . . . . . . . . . . 3 . . . . . . . . . 5 . Allies Corrupted . | . . . . . . . . . . . . . . . . . . . . . . . . . . Allies Melted . | . . . . . . . . . . . . . . . . . . . . . . . . . . Intel | -11 -10 -10 -10 -9 -8 -8 -7 -6 -5 -5 -5 -5 -4 -4 -4 -4 -4 -4 -4 -3 -3 -3 -2 -1 -1 ------- Run | Scr Mat Min Exi Min Mat Sto Fac Fac Fac Upp Upp Zhi Pro Fac Was Fac Upp Upp War Pro Res Tes Res Acc Com Robot Analysis Total 8 | . 2 . . . 1 . 1 . . . . 4 . . . . . . . . . . . . . Derelict Logs Recovered 7 | . . . . 1 . . . . . 1 2 . 3 . . . . . . . . . . . . Drone Launches . | . . . . . . . . . . . . . . . . . . . . . . . . . . Drone Recoveries . | . . . . . . . . . . . . . . . . . . . . . . . . . . Exploration | -11 -10 -10 -10 -9 -8 -8 -7 -6 -5 -5 -5 -5 -4 -4 -4 -4 -4 -4 -4 -3 -3 -3 -2 -1 -1 ------------- Run | Scr Mat Min Exi Min Mat Sto Fac Fac Fac Upp Upp Zhi Pro Fac Was Fac Upp Upp War Pro Res Tes Res Acc Com Turns Passed 18956 | 108 402 485 700 150 1718 1225 1257 574 777 552 2708 420 483 544 82 550 216 229 903 840 353 1623 804 811 442 Spaces Moved 10641 | 58 223 279 438 83 822 550 732 274 295 323 1612 236 253 283 68 241 415 320 678 421 176 727 405 375 354 Core 1463 | 13 . . . . . . . . . . . . . . . 82 415 320 405 . . . . . 228 Treads 7631 | 45 223 279 438 83 822 550 290 274 295 323 1612 236 253 203 . . . . 88 421 176 727 197 92 4 Legs 307 | . . . . . . . . . . . . . . 80 68 159 . . . . . . . . . Wheels 1055 | . . . . . . . 442 . . . . . . . . . . . . . . . 208 283 122 Hover 185 | . . . . . . . . . . . . . . . . . . . 185 . . . . . . Flight . | . . . . . . . . . . . . . . . . . . . . . . . . . . Fastest Speed 43 | 50 160 160 160 160 160 155 120 152 148 155 155 160 160 120 120 50 50 50 43 170 165 155 140 130 50 Average Speed 141 | 135 160 160 160 160 160 158 133 156 154 156 157 160 161 150 120 106 50 52 95 175 166 161 155 157 85 Slowest Speed 210 | 160 160 160 160 160 160 172 175 165 172 175 175 160 180 210 120 180 100 100 210 190 170 166 185 173 170 Overloaded Moves . | . . . . . . . . . . . . . . . . . . . . . . . . . . Propulsion Burnouts . | . . . . . . . . . . . . . . . . . . . . . . . . . . Robots Hopped . | . . . . . . . . . . . . . . . . . . . . . . . . . . Cave-ins Triggered . | . . . . . . . . . . . . . . . . . . . . . . . . . . Teleports 1 | . . . . . . . . . . . . . . 1 . . . . . . . . . . . Exploration Rate (%) 45 | 4 40 39 85 29 65 79 24 7 13 53 95 61 57 13 62 10 74 59 87 64 5 96 22 10 23 Regions Visited 25 Branch Regions 14 Pre-discovered Areas 5 | . . 1 . . . . . . . . . 3 . . . . . . . 1 . . . . . Known Exits Taken 7 | . . . . . 1 . . . 1 . . . 1 . . 1 . . . 1 1 . . 1 . Unknown Exits Taken 16 | 1 1 1 1 1 . 1 1 1 . 1 1 1 . . . . 1 1 1 . . 1 1 . . Scrap Searched 16 | . . . . 1 . . . . . 1 2 . 2 . . . 5 3 . 2 . . . . . Spaces Dug 113 | . . . . . . . . . 23 . 76 . . . . . . . . 2 . 1 2 5 4 Terrain Destroyed 676 | . . . . . 33 7 35 . 50 3 140 . 43 28 . 1 . . . 5 4 189 101 22 15 Melee 4 | . . . . . . . . . . . 2 . . . . . . . . 1 . 1 . . . Projectile 84 | . . . . . . . 1 . 4 . 6 . 7 5 . 1 . . . 4 4 8 7 22 15 AOE 588 | . . . . . 33 7 34 . 46 3 132 . 36 23 . . . . . . . 180 94 . . Terrain Rammed 1 | . . . . . . . . . . . . . . . . . . . . . . . . . 1 Walls Destroyed . | . . . . . . . . . . . . . . . . . . . . . . . . . . Machines Disabled . | . . . . . . . . . . . . . . . . . . . . . . . . . . Actions | -11 -10 -10 -10 -9 -8 -8 -7 -6 -5 -5 -5 -5 -4 -4 -4 -4 -4 -4 -4 -3 -3 -3 -2 -1 -1 --------- Run | Scr Mat Min Exi Min Mat Sto Fac Fac Fac Upp Upp Zhi Pro Fac Was Fac Upp Upp War Pro Res Tes Res Acc Com Total 12975 | 75 247 311 437 88 1028 756 897 415 451 352 1727 270 287 343 68 415 419 373 901 472 211 972 504 515 441 Wait 753 | . 11 16 . . 49 86 35 114 34 . 11 . 2 . . 54 . 42 151 8 6 46 30 39 19 Move 10617 | 57 222 278 437 82 821 549 731 273 294 322 1611 235 252 283 67 240 414 319 677 420 175 726 404 374 354 Hop . | . . . . . . . . . . . . . . . . . . . . . . . . . . Pick Up 161 | 6 2 7 . . 17 18 16 9 8 7 13 8 . 5 1 6 1 2 7 . 1 10 2 8 7 Fast Attach 168 | 2 1 . . . 2 5 5 3 3 3 6 5 2 6 . 9 1 2 18 10 11 33 15 21 5 Attach 123 | 4 . . . . 13 3 11 6 14 3 5 3 4 9 . 14 1 1 7 . . 3 3 5 14 Detach 14 | . . . . . . . . . 1 . . . . 2 . 1 1 1 2 . . 1 1 2 2 Swap 70 | . . 1 . . 13 8 2 1 5 3 10 1 4 1 . 2 . . . . . 13 3 1 2 Drop 208 | . . 3 . . 14 12 15 5 7 2 11 10 1 4 . 8 . 2 14 6 8 38 11 27 10 Fire 704 | 6 10 4 . 6 88 65 79 2 85 12 53 . 22 29 . 16 . . 14 18 9 90 35 36 25 Melee 112 | . . . . . . 1 . . . . 6 8 . 3 . 58 1 4 11 10 . 8 . 2 . Ram 11 | . . . . . . . 1 . . . . . . . . 7 . . . . . . . . 3 Kick 1 | . . . . . . . . . . . . . . 1 . . . . . . . . . . . Crush 30 | . 1 2 . . 11 9 2 . . . . . . . . . . . . . 1 4 . . . Escape Stasis 2 | . . . . . . . . 2 . . . . . . . . . . . . . . . . . Rewire 1 | . . . . . . . . . . . 1 . . . . . . . . . . . . . . Trap . | . . . . . . . . . . . . . . . . . . . . . . . . . . Miscellaneous . | . . . . . . . . . . . . . . . . . . . . . . . . . . Route ------- -11/Scrapyard -10/Materials (discovered 2 exits: [*Mat] / [*Min]) -10/Mines -10/Exiles -9/Mines -8/Materials (discovered 3 exits: *Fac / *Sto x2) -8/Storage -7/Factory -6/Factory (discovered 2 exits: *Fac x2) -5/Factory (discovered 2 exits: *Upp x2) -5/Upper Caves -5/Upper Caves (discovered 2 exits: *Fac / *Zhi) -5/Zhirov -4/Proximity Caves -4/Factory (discovered 5 exits: Res x4 / Upp) -4/Waste -4/Factory (discovered 2 exits: *Upp x2) -4/Upper Caves -4/Upper Caves -4/Warlord -3/Proximity Caves -3/Research -3/Testing -2/Research -1/Access (discovered 2 exits: Sur / *Com) -1/Command History --------- Turn | Location | Event 11 | -11/Scrapyard | Discovered new exit (range 14) 109 | -11/Scrapyard | Entered Materials 206 | -10/Materials | Discovered new exit (range 7) 317 | -10/Materials | Build established: Mutant 350 | -10/Materials | Discovered new exit (range 15) 511 | -10/Materials | Entered Mines 512 | -10/Mines | Learned location of Storage (-8) 516 | -10/Mines | Met a Derelict bent on vengeance 578 | -10/Mines | Deemed a non-threat by the Exiles lab entrance 813 | -10/Mines | Joined a pair of Derelicts in attacking an 0b10 outpost 973 | -10/Mines | Discovered new exit (range 5) 996 | -10/Mines | Entered Exiles 996 | -10/Exiles | Found Exiles lab abandoned 996 | -10/Exiles | Accompanied by 2 allies 1026 | -10/Exiles | Led the pair of lost Derelicts to a safe place 1673 | -10/Exiles | Discovered new exit (range 14) 1696 | -10/Exiles | Entered Mines 1742 | -9/Mines | Discovered new exit (range 13) 1818 | -9/Mines | Learned Materials security intel 1846 | -9/Mines | Entered Materials 1846 | -8/Materials | Evolved 4 slots: Propulsion x1, Utility x2, Weapon x1 1878 | -8/Materials | Discovered new exit (range 13) 1883 | -8/Materials | Identified exit to Storage 2153 | -8/Materials | Build established: Scavenger-Tank 2638 | -8/Materials | Discovered new exit (range 15) 3327 | -8/Materials | Destroyed 10 combat bots 3336 | -8/Materials | Lost 3 parts (1n1u1w) 3362 | -8/Materials | Garrison activated, responded to threat 3564 | -8/Materials | Entered Storage 3992 | -8/Storage | Discovered new exit (range 16) 4477 | -8/Storage | Repaired Core Shielding 4525 | -8/Storage | Repaired Gauss Rifle 4764 | -8/Storage | Build established: Tank 4789 | -8/Storage | Entered Factory 4789 | -7/Factory | Evolved 2 slots: Utility x2 5285 | -7/Factory | Lost 3 parts (1n2u) 5947 | -7/Factory | Discovered new exit (range 15) 6046 | -7/Factory | Entered another Factory area 6046 | -6/Factory | Evolved 2 slots: Power x1, Propulsion x1 6175 | -6/Factory | Discovered new exit (range 16) 6278 | -6/Factory | Repaired Gauss Rifle 6305 | -6/Factory | Repaired Lrg. Storage Unit 6535 | -6/Factory | Build established: Scavenger-Mutant 6545 | -6/Factory | Discovered new exit (range 7) 6620 | -6/Factory | Entered another Factory area 6620 | -5/Factory | Evolved 2 slots: Utility x2 6716 | -5/Factory | Found Prototype Processor 6716 | -5/Factory | Identified Exp. Signal Interpreter 6999 | -5/Factory | Identified exit to Upper Caves 7178 | -5/Factory | Destroyed 7 combat bots 7188 | -5/Factory | Lost 6 parts (1n4u1w) 7397 | -5/Factory | Entered Upper Caves 7711 | -5/Upper Caves | Spotted B-75 Beast 7726 | -5/Upper Caves | Destroyed B-75 Beast 7779 | -5/Upper Caves | Learned location of 1 exit from Factory 7852 | -5/Upper Caves | Discovered new exit (range 10) 7949 | -5/Upper Caves | Entered another Upper Caves area 8045 | -5/Upper Caves | Identified exit to Factory 8196 | -5/Upper Caves | Build established: Scavenger-Tank 8443 | -5/Upper Caves | Learned location of 1 exit from Proximity Caves 8668 | -5/Upper Caves | Encountered a Warlord checkpoint 8794 | -5/Upper Caves | Discovered new exit (range 5) 8821 | -5/Upper Caves | Found Alien Artifact 8821 | -5/Upper Caves | Identified Dimensional Node Initializer 8821 | -5/Upper Caves | Initialized slip node 9112 | -5/Upper Caves | Build established: Scavenger-Mutant 9711 | -5/Upper Caves | Attracted the attention of an 0b10 outpost 9791 | -5/Upper Caves | Lost 3 parts (1u2w) 10217 | -5/Upper Caves | Found Alien Artifact 10217 | -5/Upper Caves | Identified Core Expander 10217 | -5/Upper Caves | Installed Core Expander, added new Power slot 10603 | -5/Upper Caves | Build established: Scavenger-Gunner 10657 | -5/Upper Caves | Entered Zhirov 10657 | -5/Zhirov | Discovered new exit (range 3) 10688 | -5/Zhirov | Met Zhirov 10731 | -5/Zhirov | Zhirov requested help retrieving the SGEMP Prototype 10763 | -5/Zhirov | Found Alien Artifact 10763 | -5/Zhirov | Identified Integrated Dissipator 10763 | -5/Zhirov | Installed Integrated Dissipator, increased core heat dissipation (+20) 10895 | -5/Zhirov | Learned location of Quarantine (-2) 10895 | -5/Zhirov | Learned location of Testing (-3) 10895 | -5/Zhirov | Learned location of Command (-1) 10981 | -5/Zhirov | Build established: Scavenger-Mutant 10983 | -5/Zhirov | Found Alien Artifact 11077 | -5/Zhirov | Entered Proximity Caves 11081 | -4/Proximity Caves | Learned 4 Research zone layouts 11121 | -4/Proximity Caves | Spotted B-86 Titan 11146 | -4/Proximity Caves | Destroyed B-86 Titan 11235 | -4/Proximity Caves | Learned Research security intel 11532 | -4/Proximity Caves | Learned Research emergency access door positions 11560 | -4/Proximity Caves | Entered Factory 11560 | -4/Factory | Evolved 2 slots: Weapon x2 11561 | -4/Factory | Identified exit to Upper Caves 11821 | -4/Factory | Lost 6 parts (1p2n3w) 11979 | -4/Factory | Identified Transdimensional Reconstructor 11979 | -4/Factory | Warped through subspace 11979 | -4/Factory | Spotted B-86 Titan 12024 | -4/Factory | Identified exit to Research 12028 | -4/Factory | Allied Derelicts emerged from ambush trap array 12065 | -4/Factory | Garrison activated, responded to threat 12079 | -4/Factory | P-70 Sage assimilated allied 47-PLK(g) 12104 | -4/Factory | Sucked down chute 12104 | -4/Factory | Entered Waste 12115 | -4/Waste | Spotted C-40 Crusher 12121 | -4/Waste | Spotted C-40 Crusher 12133 | -4/Waste | Spotted C-40 Crusher 12134 | -4/Waste | Spotted C-40 Crusher 12150 | -4/Waste | Spotted C-40 Crusher 12151 | -4/Waste | Spotted C-40 Crusher 12167 | -4/Waste | Discovered new exit (range 16) 12173 | -4/Waste | Found Gamma Bomb Array 12186 | -4/Waste | Entered Factory 12414 | -4/Factory | Lost 4 parts (1p2n1w) 12522 | -4/Factory | Lost 4 parts (2n1u1w) 12600 | -4/Factory | Garrison activated, responded to threat 12670 | -4/Factory | Spotted B-86 Titan 12701 | -4/Factory | Core integrity fell below 50% 12736 | -4/Factory | Entered Upper Caves 12768 | -4/Upper Caves | Lost 16 parts (3p6n2u5w) 12834 | -4/Upper Caves | Encountered a Warlord checkpoint 12924 | -4/Upper Caves | Attracted the attention of an 0b10 checkpoint 12944 | -4/Upper Caves | Discovered new exit (range 6) 12952 | -4/Upper Caves | Entered another Upper Caves area 12953 | -4/Upper Caves | Encountered a Warlord checkpoint 12958 | -4/Upper Caves | Build established: Mutant 12992 | -4/Upper Caves | Spotted B-86 Titan 13042 | -4/Upper Caves | Core integrity fell below 20% 13178 | -4/Upper Caves | Discovered new exit (range 6) 13181 | -4/Upper Caves | Entered Warlord 13200 | -4/Warlord | System corruption cleaned by Quarantine Array 13524 | -4/Warlord | Build established: Derelict-Mutant 13573 | -4/Warlord | Visited the Vortex Lab 13584 | -4/Warlord | Met EX-DEC 13586 | -4/Warlord | Found Prototype Energy Cannon 13590 | -4/Warlord | Warlord's base attacked by MAIN.C 13605 | -4/Warlord | Found Prototype Piercing Weapon 13659 | -4/Warlord | Met Warlord 13667 | -4/Warlord | Identified Vortex Lance 13685 | -4/Warlord | Found Prototype Processor 13685 | -4/Warlord | Identified Spectral Analyzer 13688 | -4/Warlord | Found Prototype Device 13688 | -4/Warlord | Identified Exp. Focal Shield 13694 | -4/Warlord | Found Prototype Device 13694 | -4/Warlord | Identified Exp. Phase Shifter 13697 | -4/Warlord | Found Prototype Reactor 13697 | -4/Warlord | Identified Vortex Chain Reactor 13921 | -4/Warlord | P-70 Sage assimilated allied FG-VKY(Y) 13930 | -4/Warlord | P-70 Sage assimilated allied 8Z-POO(g) 13932 | -4/Warlord | Spotted Striker 13935 | -4/Warlord | P-70 Sage assimilated allied L6-XJL(Y) 13940 | -4/Warlord | Warlord forces counterattacked 13995 | -4/Warlord | Build established: Generator-Mutant 14018 | -4/Warlord | Spotted Executioner 14030 | -4/Warlord | Spotted Executioner 14065 | -4/Warlord | Discovered new exit (range 12) 14084 | -4/Warlord | Entered Proximity Caves 14438 | -3/Proximity Caves | Attracted the attention of an 0b10 base 14477 | -3/Proximity Caves | Lost 4 parts (1u3w) 14494 | -3/Proximity Caves | Destroyed 10 combat bots 14672 | -3/Proximity Caves | Learned location of 1 exit from Factory 14672 | -3/Proximity Caves | Learned Armory trap positions 14810 | -3/Proximity Caves | Spotted B-86 Titan 14910 | -3/Proximity Caves | Discovered exit to Research (range 10) 14924 | -3/Proximity Caves | Entered Research 14924 | -3/Research | Evolved 2 slots: Propulsion x2 14925 | -3/Research | Identified exit to Testing 15059 | -3/Research | Found Enh. Force Lance 15277 | -3/Research | Entered Testing 15452 | -3/Testing | Lost 4 parts (2n2w) 15633 | -3/Testing | Found Prototype Energy Gun 15633 | -3/Testing | Identified Hyp. EM Gauss Rifle 15713 | -3/Testing | Found Exp. Focal Shield 15739 | -3/Testing | Found Prototype Launcher 15739 | -3/Testing | Identified Adv. Micro-nuke Launcher 15882 | -3/Testing | Found Prototype Slashing Weapon 15883 | -3/Testing | Identified Nanosword 16030 | -3/Testing | Build established: Scavenger-Tank 16034 | -3/Testing | Spotted Striker 16034 | -3/Testing | Spotted Striker 16048 | -3/Testing | Spotted Alpha 7 16051 | -3/Testing | Destroyed Striker 16054 | -3/Testing | Destroyed Striker 16079 | -3/Testing | Destroyed Alpha 7 16096 | -3/Testing | Found Prototype Ballistic Gun 16096 | -3/Testing | Identified Multirail 16118 | -3/Testing | Stole the SGEMP Prototype 16309 | -3/Testing | Found Prototype Device 16309 | -3/Testing | Identified Exp. Thermal Shield 16561 | -3/Testing | Scanned by Researcher 16819 | -3/Testing | Discovered new exit (range 3) 16900 | -3/Testing | Entered Research 16900 | -2/Research | Warlord forces began assault on 0b10 16900 | -2/Research | Evolved 2 slots: Utility x2 17010 | -2/Research | Research machine network offline 17227 | -2/Research | Borebot progress halted 17402 | -2/Research | Spotted Executioner 17409 | -2/Research | Destroyed Executioner 17410 | -2/Research | Spotted Executioner 17422 | -2/Research | Destroyed Executioner 17513 | -2/Research | Build established: Generator-Tank 17529 | -2/Research | Spotted B-90 Cyclops 17544 | -2/Research | Destroyed B-90 Cyclops 17672 | -2/Research | Discovered new exit (range 15) 17704 | -2/Research | Entered Access 17704 | -1/Access | Evolved 2 slots: Utility x1, Weapon x1 17705 | -1/Access | Loaded intel: 114 machine locations 17705 | -1/Access | Loaded intel: 94 trap records 17705 | -1/Access | Identified exit to Surface 17705 | -1/Access | Discovered exit to Surface (range 226) 17705 | -1/Access | Identified exit to Command 17705 | -1/Access | Discovered exit to Command (range 111) 17706 | -1/Access | Delivered the SGEMP Prototype to Zhirov 17706 | -1/Access | Zhirov transferred Access data 17709 | -1/Access | Identified BFG-9k Vortex Edition 17711 | -1/Access | Destroyed Zhirov 17741 | -1/Access | Spotted B-99 Colossus 17767 | -1/Access | Destroyed B-99 Colossus 17796 | -1/Access | Found Multirail 17804 | -1/Access | Found Hvy. Insulated Plating 18004 | -1/Access | Garrison activated, responded to threat 18088 | -1/Access | Found Prototype Device 18088 | -1/Access | Identified Exp. Shock Absorption System 18119 | -1/Access | Found Prototype Energy Gun 18119 | -1/Access | Identified Enh. Gamma Rifle 18515 | -1/Access | Entered Command 18712 | -1/Command | Spotted M Guard 18712 | -1/Command | Spotted M Guard 18720 | -1/Command | Spotted Combat Programmer 18720 | -1/Command | Spotted Combat Programmer 18778 | -1/Command | System corruption reached 10% 18845 | -1/Command | Core integrity fell below 50% 18884 | -1/Command | Core integrity fell below 20% 18903 | -1/Command | Lost 23 parts (2p3n10u8w) 18907 | -1/Command | Found Prototype Device 18907 | -1/Command | Identified EM Disruption Field 18957 | -1/Command | Destroyed by S-43 Plague with Heavy Machine Gun Last Messages --------------- 18898_ Acquired Hvy. Siege Treads. 18900_ ALERT: Hostiles spotted, dispatching reinforcements to Terminal C010. 18907_ Acquired Prototype Device. 18907_ Identified EM Disruption Field. 18911_ Slammed into S-43 Plague. 18911_ S-43 Plague destroyed. 18912_ System corrupted: Substantial component data lost. 18914_ EM Disruption Field destroyed. 18934_ O-32 Director sends out distress signal. 18934_ O-32 Director: "IFF HANDSHAKE FAILED. SECURING TERMINAL." 18937_ System corrupted: Matter fused (-6). 18938_ ALERT: Hostiles spotted, dispatching reinforcements to Terminal C013. 18942_ Penetrated by Slug. 18942_ Slug penetrates Wall. 18943_ Hvy. Siege Treads destroyed. 18955_ Critical hit. 18955_ Broken Biometal Heavy Treads destroyed. 18957_ D8XKS/RBNIPEVNQ%J8DCZY CMTW Map ----- +----------------------------------------------------+ | ????????????????????### "" "" #?????????#""" | | ??????????????????????# ""T"" #?????????#""R | | ??????????????????????# """ #????????##"" | | ??????????????????????## ####### #????????# | | ???????????????????????# #?????# #????????# [ | | ???????????????????????# #?????# #+######## | | ???????????????????????# #???? + # | | ???????????????????????# #?? # + | | ???????????????????????# # ####### ####*# | | ???????????????????????# + #??????????#%# | | ???????????????????????# # #??????????#!# | | ???????????????????????# #?? #??????????#+##+## | | ???????????????????????# #???? #??????????# | | ???????????????????????# #????????????????# | | ???????????????????????# #????????????????# ! | | ???????????????????????# #????????????????# | | ???????????????????????# #????????????????# | | ???????????????????????# #????????????????# | | ???????????????????????# #?????? ##???????# | | ???????????????????????# ##### #???????# | | ???????????????????????# #???????# | | ???????????????????????# #???????# | | ???????????????????????# ##### #???????#! | | ???????????????????????# #??????###???????# | | ???????????????????????# #????????????????# | | ???????????????????????# @#????????????????# | | ???????????????????????# #???????############/### | | ??????????????????????# ???? | | ??????????????????????# ???? | | ??????????????????????# #??? ##########/### | | ??????????????????????# #??????????# | | ??????????????????????##+###??????????# | | ???????????????????????? ?????????????# | | ??????????????????????????????# ??# | | ??????????????????????????????# ??# | | ??????????????????????????????# ??# | | ??????????????????????????????# ??# | | ??????????????????????????????# #?# | | ??????????????????????????????# #?# | | ??????????????????????????????# #?# | | ??????????????????????????????# #?# | | ??????????????????????????????# #?# | | ??????????????????????????????# #?#####""##### | | ??????????????????????????????# ######"""##### | | ??????????????????????????????# # # | | ??????????????????????????????# # !!! # | | ??????????????????????????????# # !!! # | | ??????????????????????????????# + !! + | | ??????????????????????????????# # % # | | ??????????????????????????????# ######""""#### | +----------------------------------------------------+ Best States ------------- Heat Dissipation 142 Coolant Potential 100 Energy Generation 77 Energy Capacity 1320 Matter Stores 300 Matter Capacity 300 Sight Range 24 Terrain Scan Density 10 Cloak Strength 2 Power Amplification 30 Armor Coverage 1650 Resistance: KI 30 Resistance: TH 30 Resistance: EX 75 Resistance: EM 50 Core Shielding 20 Weapon Cycling 20 Phase Shifting 20 Evasion (%) 76 Target Analysis 6 Armor Integrity Analysis 50 Recoil Reduction 12 Energy Filtering 50 Particle Charging 25 Kinecelleration 30 Offensive Hacking 11 Defensive Hacking 14 Item Schematics ----------------- Assault Drone Bay | -5/Zhirov | Free Exp. Heat Sink | -5/Zhirov | Free Exp. Optical Array | -5/Zhirov | Free Imp. Arc Thrower | -5/Zhirov | Free Robot Schematics ------------------ None Fabricated ------------ Nothing Alien Tech Used ----------------- Dimensional Node Initializer Core Expander Integrated Dissipator Transdimensional Reconstructor Achievements -------------- None Challenges ------------ None Game ------ Seed BiocellPlasmaTearclaws Manual? 0 Play Time 02:15:35 Cumulative 543.2 hours Start 2021.09.24 @ 17:29:14 End 2021.09.24 @ 19:59:43 Sessions 1 Manual Loads 0 Difficulty Rogue Special Mode None Game No. 385 Rogue 378 Adventurer 0 Explorer 7 Win Type - Total 30 Types 9/4/11/1/0/1/2/1/1 Lore% 87 Gallery% 96 Achievement% 81 Wizard Run 0 Options --------- ASCII 0 Keyboard 0 Movement Numpad Keybinds 0 Fullscreen 1 Font 18/X11Bold Map View 76x50 Tactical HUD 1 Map Filters NONE Filters NONE Steam 1 RUN: 4b16b29d-daec-4aaa-942c-28a592030bc4